[Event "*** SCC Grand Prix: Titled Tuesday Blitz"]
[Site "Chess.com"]
[Date "2020.07.07"]
[Round "4"]
[White "Stouuf"]
[Black "ajdemipopushi"]
[Result "0-1"]
[WhiteElo "2523"]
[BlackElo "2352"]
[TimeControl "180+1"]
[EndTime "10:41:33 PDT"]
[Termination "ajdemipopushi won on time"]

1. e4 {[%clk 0:03:00.9]} 1... c5 {[%clk 0:02:59.7]} 2. Nf3 {[%clk 0:02:56.6]}
2... g6 {[%clk 0:03:00.1]} 3. d4 {[%clk 0:02:56]} 3... cxd4 {[%clk 0:03:00.3]}
4. Qxd4 {[%clk 0:02:55.3]} 4... Nf6 {[%clk 0:03:00.2]} 5. e5 {[%clk 0:02:52.7]}
5... Nc6 {[%clk 0:03:00.1]} 6. Qa4 {[%clk 0:02:51.6]} 6... Nd5 {[%clk
0:02:56.3]} 7. Qb3 {[%clk 0:02:51.5]} 7... Nc7 {[%clk 0:02:45.5]} 8. Nc3 {[%clk
0:02:50.3]} 8... Bg7 {[%clk 0:02:44.5]} 9. Bf4 {[%clk 0:02:49.5]} 9... Ne6
{[%clk 0:02:39.5]} 10. Bg3 {[%clk 0:02:48.4]} 10... Ned4 {[%clk 0:02:28]} 11.
Nxd4 {[%clk 0:02:47.8]} 11... Nxd4 {[%clk 0:02:27.7]} 12. Qa4 {[%clk 0:02:48.5]}
12... Nf5 {[%clk 0:02:19.4]} 13. Bf4 {[%clk 0:02:27.4]} 13... O-O {[%clk
0:01:44.8]} 14. O-O-O {[%clk 0:02:26.4]} 14... d6 {[%clk 0:01:30.8]} 15. g4
{[%clk 0:02:17.5]} 15... Nh6 {[%clk 0:01:29.9]} 16. f3 {[%clk 0:02:10.4]} 16...
Bd7 {[%clk 0:01:26.6]} 17. Qe4 {[%clk 0:02:02.1]} 17... Bc6 {[%clk 0:01:25.9]}
18. Nd5 {[%clk 0:01:49.9]} 18... e6 {[%clk 0:01:19.2]} 19. Qe3 {[%clk
0:01:49.9]} 19... Nxg4 {[%clk 0:01:13.8]} 20. fxg4 {[%clk 0:01:49.9]} 20... Bxd5
{[%clk 0:01:13.8]} 21. Rg1 {[%clk 0:01:44.6]} 21... dxe5 {[%clk 0:00:32.5]} 22.
Bxe5 {[%clk 0:01:45.5]} 22... Qb6 {[%clk 0:00:32.4]} 23. Qxb6 {[%clk 0:01:19.3]}
23... axb6 {[%clk 0:00:32.4]} 24. Bxg7 {[%clk 0:01:20.2]} 24... Kxg7 {[%clk
0:00:32.9]} 25. a3 {[%clk 0:01:21.1]} 25... Rfd8 {[%clk 0:00:19.7]} 26. g5
{[%clk 0:01:20.4]} 26... Bf3 {[%clk 0:00:16]} 27. Rd3 {[%clk 0:01:16]} 27...
Rxd3 {[%clk 0:00:13.8]} 28. Bxd3 {[%clk 0:01:16.9]} 28... h6 {[%clk 0:00:11.9]}
29. h4 {[%clk 0:01:15.8]} 29... hxg5 {[%clk 0:00:11.7]} 30. hxg5 {[%clk
0:01:16.7]} 30... Rd8 {[%clk 0:00:11.1]} 31. Rf1 {[%clk 0:01:17.1]} 31... Bc6
{[%clk 0:00:10.5]} 32. Rf4 {[%clk 0:01:17.6]} 32... Rd5 {[%clk 0:00:10]} 33. Rg4
{[%clk 0:01:17.2]} 33... Re5 {[%clk 0:00:09.4]} 34. b4 {[%clk 0:01:16.9]} 34...
b5 {[%clk 0:00:09.1]} 35. Kb2 {[%clk 0:01:16.3]} 35... Re3 {[%clk 0:00:08.6]}
36. Kc3 {[%clk 0:01:11.9]} 36... e5 {[%clk 0:00:08.8]} 37. Kd2 {[%clk
0:01:00.9]} 37... Rh3 {[%clk 0:00:08.6]} 38. Rg1 {[%clk 0:00:59.3]} 38... e4
{[%clk 0:00:08.3]} 39. Be2 {[%clk 0:00:57.2]} 39... Rxa3 {[%clk 0:00:08.9]} 40.
c3 {[%clk 0:00:50.6]} 40... Ra2+ {[%clk 0:00:08.7]} 41. Ke3 {[%clk 0:00:51.2]}
41... Rc2 {[%clk 0:00:07.2]} 42. Rf1 {[%clk 0:00:41]} 42... Rxc3+ {[%clk
0:00:07.3]} 43. Kd4 {[%clk 0:00:39.4]} 43... Rg3 {[%clk 0:00:07.8]} 44. Bd1
{[%clk 0:00:36.6]} 44... Rxg5 {[%clk 0:00:07.9]} 45. Bb3 {[%clk 0:00:37.2]}
45... f5 {[%clk 0:00:08.3]} 46. Ke5 {[%clk 0:00:35.6]} 46... Rg3 {[%clk
0:00:07.3]} 47. Be6 {[%clk 0:00:32.9]} 47... e3 {[%clk 0:00:07.2]} 48. Kf4
{[%clk 0:00:27.6]} 48... e2 {[%clk 0:00:03.8]} 49. Re1 {[%clk 0:00:26.4]} 49...
Rf3+ {[%clk 0:00:03.7]} 50. Ke5 {[%clk 0:00:23.7]} 50... Re3+ {[%clk 0:00:03.7]}
51. Kd6 {[%clk 0:00:24.3]} 51... f4 {[%clk 0:00:03.6]} 52. Bg4 {[%clk
0:00:20.9]} 52... f3 {[%clk 0:00:03.4]} 53. Kc5 {[%clk 0:00:17.1]} 53... f2
{[%clk 0:00:03.4]} 54. Rxe2 {[%clk 0:00:17.9]} 54... f1=Q {[%clk 0:00:03.6]} 55.
Rxe3 {[%clk 0:00:18.5]} 55... Qc4+ {[%clk 0:00:03.6]} 56. Kd6 {[%clk 0:00:15.9]}
56... Qxb4+ {[%clk 0:00:03.7]} 57. Ke5 {[%clk 0:00:11.6]} 57... Qxg4 {[%clk
0:00:04.6]} 58. Rd3 {[%clk 0:00:11.8]} 58... Qf5+ {[%clk 0:00:04.4]} 59. Kd6
{[%clk 0:00:11.8]} 59... Qxd3+ {[%clk 0:00:04.1]} 60. Kc7 {[%clk 0:00:12.7]}
60... Qd7+ {[%clk 0:00:04.3]} 61. Kb6 {[%clk 0:00:13]} 61... b4 {[%clk
0:00:04.8]} 62. Ka7 {[%clk 0:00:13.6]} 62... b3 {[%clk 0:00:05.2]} 63. Ka8
{[%clk 0:00:14.5]} 63... b2 {[%clk 0:00:05.6]} 64. Kb8 {[%clk 0:00:15.4]} 64...
b1=Q {[%clk 0:00:05.7]} 65. Ka8 {[%clk 0:00:16.3]} 65... Qd8+ {[%clk 0:00:05.1]}
66. Ka7 {[%clk 0:00:16.3]} 66... Qa5+ {[%clk 0:00:05.6]} 67. Kb8 {[%clk
0:00:16.1]} 67... Qd8+ {[%clk 0:00:06.1]} 0-1

[Event "*** SCC Grand Prix: Titled Tuesday Blitz"]
[Site "Chess.com"]
[Date "2020.07.07"]
[Round "4"]
[White "MathiasWomacka"]
[Black "KaspMagAlpha"]
[Result "1-0"]
[WhiteElo "2431"]
[BlackElo "2231"]
[TimeControl "180+1"]
[EndTime "10:41:33 PDT"]
[Termination "MathiasWomacka won by resignation"]

1. e4 {[%clk 0:03:00.9]} 1... c5 {[%clk 0:02:59.4]} 2. Nf3 {[%clk 0:03:00.2]}
2... e6 {[%clk 0:02:58.7]} 3. d4 {[%clk 0:03:00.7]} 3... cxd4 {[%clk 0:02:58.5]}
4. Nxd4 {[%clk 0:03:01.6]} 4... a6 {[%clk 0:02:58.4]} 5. Bd3 {[%clk 0:03:00.8]}
5... Qc7 {[%clk 0:02:57.9]} 6. Qe2 {[%clk 0:02:59.5]} 6... b5 {[%clk 0:02:53.7]}
7. O-O {[%clk 0:02:56.5]} 7... Bb7 {[%clk 0:02:53.4]} 8. a4 {[%clk 0:02:56.2]}
8... b4 {[%clk 0:02:52.9]} 9. Nd2 {[%clk 0:02:55.9]} 9... Bd6 {[%clk 0:02:48.6]}
10. h3 {[%clk 0:02:52.6]} 10... Be5 {[%clk 0:02:43.8]} 11. N4f3 {[%clk
0:02:50.8]} 11... Nc6 {[%clk 0:02:42.1]} 12. Nc4 {[%clk 0:02:47.7]} 12... d6
{[%clk 0:02:41.8]} 13. Be3 {[%clk 0:02:43.6]} 13... Nf6 {[%clk 0:02:29.4]} 14.
Nb6 {[%clk 0:02:39.8]} 14... Rd8 {[%clk 0:02:25.8]} 15. Nxe5 {[%clk 0:02:38.6]}
15... Nxe5 {[%clk 0:02:24.1]} 16. Bxa6 {[%clk 0:02:34.5]} 16... Bxe4 {[%clk
0:02:12.5]} 17. Bb5+ {[%clk 0:02:32.8]} 17... Bc6 {[%clk 0:02:11.4]} 18. Bf4
{[%clk 0:02:22.2]} 18... Ng6 {[%clk 0:01:53.9]} 19. Be3 {[%clk 0:02:21.3]} 19...
O-O {[%clk 0:01:52.6]} 20. Qc4 {[%clk 0:02:13.3]} 20... Ne5 {[%clk 0:01:43.6]}
21. Qxb4 {[%clk 0:02:13.2]} 21... Bb7 {[%clk 0:01:36.6]} 22. c3 {[%clk
0:02:07.7]} 22... Rb8 {[%clk 0:01:29.2]} 23. a5 {[%clk 0:02:07.3]} 23... Nd5
{[%clk 0:01:23.9]} 24. Nxd5 {[%clk 0:02:05.4]} 24... Bxd5 {[%clk 0:01:24.8]} 25.
Bb6 {[%clk 0:02:01.8]} 25... Qe7 {[%clk 0:01:23]} 26. c4 {[%clk 0:01:38.3]}
26... Ba8 {[%clk 0:01:05.4]} 27. Qd2 {[%clk 0:01:32.9]} 27... Rfc8 {[%clk
0:00:57.3]} 28. b3 {[%clk 0:01:31.1]} 28... d5 {[%clk 0:00:55.6]} 29. cxd5
{[%clk 0:01:09.5]} 29... Bxd5 {[%clk 0:00:54]} 30. Rfc1 {[%clk 0:01:04.1]} 30...
Rxc1+ {[%clk 0:00:51]} 31. Rxc1 {[%clk 0:01:03.1]} 31... Qf6 {[%clk 0:00:48.1]}
32. Qe3 {[%clk 0:00:40.6]} 32... Qg6 {[%clk 0:00:43.2]} 33. Qg3 {[%clk 0:00:39]}
33... Qxg3 {[%clk 0:00:22.3]} 34. fxg3 {[%clk 0:00:39.9]} 34... f6 {[%clk
0:00:12.9]} 35. b4 {[%clk 0:00:37.3]} 35... Kf7 {[%clk 0:00:12.1]} 36. Be2
{[%clk 0:00:36.4]} 36... f5 {[%clk 0:00:10.7]} 37. Bc7 {[%clk 0:00:35.7]} 37...
Rxb4 {[%clk 0:00:08.4]} 38. Bxe5 {[%clk 0:00:35.4]} 38... Ra4 {[%clk 0:00:09.3]}
39. a6 {[%clk 0:00:34.6]} 39... Be4 {[%clk 0:00:08.1]} 40. Rc7+ {[%clk
0:00:33.3]} 40... Ke8 {[%clk 0:00:07.8]} 41. Bf3 {[%clk 0:00:32.4]} 41... Rxa6
{[%clk 0:00:05.5]} 42. Bxe4 {[%clk 0:00:31.6]} 42... fxe4 {[%clk 0:00:06.4]} 43.
Rxg7 {[%clk 0:00:31.9]} 43... Ra5 {[%clk 0:00:06.4]} 44. Bf6 {[%clk 0:00:31.1]}
44... e3 {[%clk 0:00:06.7]} 45. Re7+ {[%clk 0:00:29.5]} 45... Kf8 {[%clk
0:00:07.1]} 46. Rxe6 {[%clk 0:00:29.7]} 46... Ra1+ {[%clk 0:00:08]} 47. Kh2
{[%clk 0:00:29.3]} 47... Ra3 {[%clk 0:00:08.1]} 48. Bg5 {[%clk 0:00:28.6]} 48...
Kf7 {[%clk 0:00:09]} 49. Rxe3 {[%clk 0:00:28.4]} 49... Ra5 {[%clk 0:00:09.2]}
50. Rf3+ {[%clk 0:00:28.5]} 50... Kg6 {[%clk 0:00:10.1]} 51. Bf4 {[%clk
0:00:29.4]} 51... Ra4 {[%clk 0:00:09.9]} 52. g4 {[%clk 0:00:29.9]} 52... h5
{[%clk 0:00:10.8]} 53. gxh5+ {[%clk 0:00:29.6]} 53... Kxh5 {[%clk 0:00:11.7]}
54. Be3 {[%clk 0:00:29.3]} 54... Kg6 {[%clk 0:00:12.6]} 55. Kg3 {[%clk
0:00:28.5]} 55... Ra2 {[%clk 0:00:12.2]} 56. Bf4 {[%clk 0:00:28.5]} 56... Kf5
{[%clk 0:00:12.4]} 57. Rc3 {[%clk 0:00:28.2]} 57... Ke4 {[%clk 0:00:12.2]} 58.
Rc4+ {[%clk 0:00:28]} 58... Kd5 {[%clk 0:00:12.2]} 59. Rb4 {[%clk 0:00:27.6]}
59... Kc5 {[%clk 0:00:12.4]} 60. Rb8 {[%clk 0:00:27]} 60... Kd5 {[%clk
0:00:11.6]} 61. Re8 {[%clk 0:00:26.6]} 61... Kc6 {[%clk 0:00:10.5]} 62. h4
{[%clk 0:00:26.6]} 62... Kd7 {[%clk 0:00:11.4]} 63. Re1 {[%clk 0:00:25.7]} 63...
Ra3+ {[%clk 0:00:09.2]} 64. Kg4 {[%clk 0:00:25.2]} 64... Ra2 {[%clk 0:00:08.3]}
65. g3 {[%clk 0:00:25.2]} 65... Ra8 {[%clk 0:00:09]} 66. h5 {[%clk 0:00:25]}
66... Rg8+ {[%clk 0:00:09.9]} 67. Kf5 {[%clk 0:00:24.6]} 67... Rf8+ {[%clk
0:00:09.9]} 68. Kg6 {[%clk 0:00:24]} 68... Rg8+ {[%clk 0:00:10.3]} 69. Kf7
{[%clk 0:00:23.7]} 69... Rh8 {[%clk 0:00:10.3]} 70. h6 {[%clk 0:00:23.4]} 70...
Rh7+ {[%clk 0:00:09.9]} 71. Kg6 {[%clk 0:00:22.9]} 71... Rh8 {[%clk 0:00:09.8]}
72. h7 {[%clk 0:00:23.2]} 72... Rf8 {[%clk 0:00:09.8]} 73. Kg7 {[%clk
0:00:22.9]} 73... Rb8 {[%clk 0:00:10.2]} 74. h8=Q {[%clk 0:00:22.4]} 74... Rxh8
{[%clk 0:00:07.5]} 75. Kxh8 {[%clk 0:00:23.3]} 1-0

[Event "*** SCC Grand Prix: Titled Tuesday Blitz"]
[Site "Chess.com"]
[Date "2020.07.07"]
[Round "4"]
[White "ZAbdumalik"]
[Black "hectorfiori"]
[Result "1-0"]
[WhiteElo "2591"]
[BlackElo "2328"]
[TimeControl "180+1"]
[EndTime "10:41:34 PDT"]
[Termination "ZAbdumalik won by resignation"]

1. e4 {[%clk 0:03:00.9]} 1... c5 {[%clk 0:02:59.6]} 2. Nf3 {[%clk 0:03:00.9]}
2... e6 {[%clk 0:02:59.9]} 3. d4 {[%clk 0:03:01]} 3... cxd4 {[%clk 0:03:00.8]}
4. Nxd4 {[%clk 0:03:01.4]} 4... Nf6 {[%clk 0:03:01.5]} 5. Nc3 {[%clk 0:03:01.3]}
5... Bb4 {[%clk 0:03:02]} 6. Bd3 {[%clk 0:02:57.8]} 6... e5 {[%clk 0:03:01]} 7.
Ne2 {[%clk 0:02:56.3]} 7... d5 {[%clk 0:02:55]} 8. exd5 {[%clk 0:02:56.4]} 8...
Nxd5 {[%clk 0:02:55.1]} 9. O-O {[%clk 0:02:56.3]} 9... Nxc3 {[%clk 0:02:52.3]}
10. Nxc3 {[%clk 0:02:56.6]} 10... Nc6 {[%clk 0:02:49.2]} 11. Qh5 {[%clk
0:02:54.5]} 11... g6 {[%clk 0:02:38.2]} 12. Qh6 {[%clk 0:02:41.2]} 12... Bf8
{[%clk 0:02:37]} 13. Qe3 {[%clk 0:02:35.5]} 13... Bg7 {[%clk 0:02:34.5]} 14. Qc5
{[%clk 0:02:32.5]} 14... Qe7 {[%clk 0:02:32.9]} 15. Qxe7+ {[%clk 0:02:25.5]}
15... Nxe7 {[%clk 0:02:30.5]} 16. Bg5 {[%clk 0:02:24.7]} 16... f6 {[%clk
0:02:27.4]} 17. Be3 {[%clk 0:02:23.4]} 17... Be6 {[%clk 0:02:22.8]} 18. Nb5
{[%clk 0:02:19.2]} 18... Nd5 {[%clk 0:01:50.3]} 19. Bxa7 {[%clk 0:02:17.8]}
19... O-O {[%clk 0:01:44.8]} 20. a3 {[%clk 0:02:13]} 20... Rfc8 {[%clk
0:01:37.7]} 21. Be3 {[%clk 0:02:01.4]} 21... Nxe3 {[%clk 0:01:35.9]} 22. fxe3
{[%clk 0:02:01.6]} 22... f5 {[%clk 0:01:35.1]} 23. e4 {[%clk 0:02:00.3]} 23...
fxe4 {[%clk 0:01:11.6]} 24. Bxe4 {[%clk 0:02:00.3]} 24... Bc4 {[%clk 0:01:11.6]}
25. Nd6 {[%clk 0:01:57.4]} 25... Bxf1 {[%clk 0:01:10.3]} 26. Bd5+ {[%clk
0:01:34.1]} 26... Kf8 {[%clk 0:00:57.3]} 27. Rxf1+ {[%clk 0:01:31.3]} 27... Ke7
{[%clk 0:00:51.5]} 28. Nxc8+ {[%clk 0:01:31.6]} 28... Rxc8 {[%clk 0:00:51.7]}
29. Rf7+ {[%clk 0:01:32.5]} 29... Kd6 {[%clk 0:00:52.2]} 30. c4 {[%clk
0:01:33.3]} 30... Rc7 {[%clk 0:00:47]} 31. Rxc7 {[%clk 0:01:22]} 31... Kxc7
{[%clk 0:00:47.9]} 32. b4 {[%clk 0:01:21.3]} 32... Bh6 {[%clk 0:00:46.6]} 33.
Kf2 {[%clk 0:01:21]} 33... Bc1 {[%clk 0:00:37.1]} 34. a4 {[%clk 0:01:20.7]}
34... Ba3 {[%clk 0:00:36.7]} 35. b5 {[%clk 0:01:20.8]} 35... b6 {[%clk
0:00:35.3]} 36. Kf3 {[%clk 0:01:20.6]} 36... Kd6 {[%clk 0:00:32.4]} 37. Ke4
{[%clk 0:01:18.5]} 37... Bc5 {[%clk 0:00:27.3]} 38. g4 {[%clk 0:01:16.4]} 38...
Bg1 {[%clk 0:00:20.7]} 39. h3 {[%clk 0:01:13.3]} 39... h6 {[%clk 0:00:20.3]} 40.
Bf7 {[%clk 0:01:12.5]} 40... g5 {[%clk 0:00:17.1]} 41. Bd5 {[%clk 0:01:11.6]}
41... Bd4 {[%clk 0:00:10.2]} 42. Kf5 {[%clk 0:01:11.4]} 42... Ke7 {[%clk
0:00:10.3]} 43. Kg6 {[%clk 0:01:09.6]} 43... Bf2 {[%clk 0:00:08.7]} 44. Kxh6
{[%clk 0:01:06.4]} 44... Kf6 {[%clk 0:00:08.9]} 45. Kh5 {[%clk 0:01:05.1]} 45...
Be1 {[%clk 0:00:09]} 46. Be4 {[%clk 0:01:02]} 46... Bf2 {[%clk 0:00:08.7]} 47.
Kh6 {[%clk 0:00:47.6]} 47... Be3 {[%clk 0:00:08.6]} 48. Kh7 {[%clk 0:00:45.7]}
48... Kf7 {[%clk 0:00:07.6]} 49. Bd5+ {[%clk 0:00:45.7]} 49... Kf6 {[%clk
0:00:07.8]} 50. Kg8 {[%clk 0:00:45.7]} 50... Bf2 {[%clk 0:00:06.2]} 51. Kf8
{[%clk 0:00:45.3]} 51... Bc5+ {[%clk 0:00:04.2]} 52. Ke8 {[%clk 0:00:45.2]}
52... Bd4 {[%clk 0:00:03.7]} 53. Kd7 {[%clk 0:00:45.1]} 53... Bc5 {[%clk
0:00:03.7]} 54. Kc6 {[%clk 0:00:44.7]} 54... Bd4 {[%clk 0:00:03.9]} 55. Kb7
{[%clk 0:00:44.5]} 55... Ke7 {[%clk 0:00:03.4]} 56. Ka6 {[%clk 0:00:35]} 56...
Kd6 {[%clk 0:00:03.6]} 57. a5 {[%clk 0:00:35.2]} 57... bxa5 {[%clk 0:00:02.8]}
58. Kxa5 {[%clk 0:00:32.7]} 58... Kc7 {[%clk 0:00:02.8]} 59. Kb4 {[%clk
0:00:22.5]} 59... Kb6 {[%clk 0:00:03.7]} 60. Kb3 {[%clk 0:00:22.6]} 60... Kc5
{[%clk 0:00:04.2]} 61. Kc2 {[%clk 0:00:22.7]} 61... Bf2 {[%clk 0:00:04.3]} 62.
Kd3 {[%clk 0:00:22.9]} 62... Bh4 {[%clk 0:00:04.8]} 63. Ke4 {[%clk 0:00:23.1]}
63... Bg3 {[%clk 0:00:05.2]} 64. Kf5 {[%clk 0:00:23.1]} 64... Bf4 {[%clk
0:00:03.4]} 65. Ke6 {[%clk 0:00:23.2]} 65... Bg3 {[%clk 0:00:02.9]} 66. Kd7
{[%clk 0:00:23.5]} 66... Bf4 {[%clk 0:00:03.8]} 67. Be4 {[%clk 0:00:19.6]} 67...
Kb6 {[%clk 0:00:03.5]} 68. Kd6 {[%clk 0:00:19.6]} 68... Ka7 {[%clk 0:00:01.1]}
69. c5 {[%clk 0:00:19.7]} 69... Kb8 {[%clk 0:00:01]} 70. c6 {[%clk 0:00:19.9]}
70... Be3 {[%clk 0:00:01.5]} 71. c7+ {[%clk 0:00:19.2]} 1-0

[Event "*** SCC Grand Prix: Titled Tuesday Blitz"]
[Site "Chess.com"]
[Date "2020.07.07"]
[Round "4"]
[White "26andrej26"]
[Black "giantslayer83"]
[Result "0-1"]
[WhiteElo "2517"]
[BlackElo "2724"]
[TimeControl "180+1"]
[EndTime "10:41:44 PDT"]
[Termination "giantslayer83 won by resignation"]

1. e4 {[%clk 0:03:00.9]} 1... c6 {[%clk 0:02:59.9]} 2. Nc3 {[%clk 0:03:00.8]}
2... d5 {[%clk 0:03:00.8]} 3. d4 {[%clk 0:03:01.2]} 3... dxe4 {[%clk 0:03:00.2]}
4. Nxe4 {[%clk 0:03:02.1]} 4... Bf5 {[%clk 0:03:00.5]} 5. Ng3 {[%clk 0:03:02.2]}
5... Bg6 {[%clk 0:03:00.6]} 6. h4 {[%clk 0:03:02.4]} 6... h6 {[%clk 0:03:00.5]}
7. Nf3 {[%clk 0:03:02.9]} 7... Nf6 {[%clk 0:02:57.5]} 8. Ne5 {[%clk 0:03:00.9]}
8... Bh7 {[%clk 0:02:57.5]} 9. Bc4 {[%clk 0:03:00.4]} 9... e6 {[%clk 0:02:57.3]}
10. c3 {[%clk 0:03:00.8]} 10... Nbd7 {[%clk 0:02:47.9]} 11. Qb3 {[%clk
0:03:00.8]} 11... Nb6 {[%clk 0:02:37.9]} 12. Nxf7 {[%clk 0:02:58.9]} 12... Kxf7
{[%clk 0:02:37.7]} 13. Bxe6+ {[%clk 0:02:59]} 13... Ke8 {[%clk 0:02:29.6]} 14.
O-O {[%clk 0:02:59.4]} 14... Bd6 {[%clk 0:02:27.6]} 15. Re1 {[%clk 0:02:58]}
15... Kf8 {[%clk 0:02:26.1]} 16. Nf5 {[%clk 0:02:40.8]} 16... Qc7 {[%clk
0:02:04.1]} 17. Nxh6 {[%clk 0:02:29.6]} 17... Re8 {[%clk 0:01:53.9]} 18. Bg5
{[%clk 0:02:26.8]} 18... Bg6 {[%clk 0:01:40.6]} 19. Nf5 {[%clk 0:02:16.7]} 19...
Nfd5 {[%clk 0:01:35.6]} 20. c4 {[%clk 0:02:08.6]} 20... Rxe6 {[%clk 0:01:29.1]}
21. Rxe6 {[%clk 0:02:06.4]} 21... Bh2+ {[%clk 0:01:28.3]} 22. Kf1 {[%clk
0:01:59.4]} 22... Bxf5 {[%clk 0:01:29.2]} 23. cxd5 {[%clk 0:01:53.2]} 23... Nxd5
{[%clk 0:01:28.6]} 24. Qf3 {[%clk 0:01:42.7]} 24... Qf7 {[%clk 0:01:23.3]} 25.
Re5 {[%clk 0:01:42.3]} 25... Bxe5 {[%clk 0:01:22.5]} 26. dxe5 {[%clk 0:01:41.3]}
26... g6 {[%clk 0:01:19.9]} 27. Qa3+ {[%clk 0:01:21.8]} 27... Kg7 {[%clk
0:01:19.8]} 28. Qxa7 {[%clk 0:01:22]} 28... Re8 {[%clk 0:01:15.4]} 29. Qd4
{[%clk 0:01:20.1]} 29... Kh7 {[%clk 0:01:15.4]} 30. Re1 {[%clk 0:01:18.4]} 30...
b6 {[%clk 0:01:12.3]} 31. b3 {[%clk 0:01:02.4]} 31... c5 {[%clk 0:01:11.9]} 32.
Qd2 {[%clk 0:01:01.4]} 32... Be6 {[%clk 0:01:10.7]} 33. Kg1 {[%clk 0:00:54.8]}
33... Qf5 {[%clk 0:01:10]} 34. f3 {[%clk 0:00:43.2]} 34... Rf8 {[%clk
0:01:09.8]} 35. Re4 {[%clk 0:00:37.7]} 35... Rf7 {[%clk 0:01:08]} 36. Qe1 {[%clk
0:00:30]} 36... Rd7 {[%clk 0:01:05.9]} 37. Kh2 {[%clk 0:00:29.3]} 37... Nb4
{[%clk 0:01:04.2]} 38. Rf4 {[%clk 0:00:29.4]} 38... Qc2 {[%clk 0:00:49.5]} 39.
Rf6 {[%clk 0:00:27.9]} 39... Re7 {[%clk 0:00:41.1]} 40. Qg3 {[%clk 0:00:20.3]}
40... Nd5 {[%clk 0:00:39.7]} 41. Rf8 {[%clk 0:00:17.2]} 41... Rf7 {[%clk
0:00:38.6]} 42. Rd8 {[%clk 0:00:16]} 42... b5 {[%clk 0:00:19.7]} 43. Rd6 {[%clk
0:00:16]} 43... Qf5 {[%clk 0:00:19.3]} 44. a4 {[%clk 0:00:11.5]} 44... bxa4
{[%clk 0:00:17.9]} 45. bxa4 {[%clk 0:00:12.4]} 45... c4 {[%clk 0:00:18.5]} 46.
a5 {[%clk 0:00:12.9]} 46... c3 {[%clk 0:00:18.8]} 47. a6 {[%clk 0:00:13.2]}
47... c2 {[%clk 0:00:19.1]} 48. Rc6 {[%clk 0:00:13.1]} 48... Rc7 {[%clk
0:00:16.8]} 49. Rxc7+ {[%clk 0:00:11.5]} 49... Nxc7 {[%clk 0:00:17.7]} 50. a7
{[%clk 0:00:11.4]} 50... Bd5 {[%clk 0:00:18.1]} 51. Qf2 {[%clk 0:00:10.5]} 51...
Qxe5+ {[%clk 0:00:17.8]} 52. Kg1 {[%clk 0:00:07.4]} 52... Qxg5 {[%clk
0:00:17.8]} 53. hxg5 {[%clk 0:00:06.9]} 53... c1=Q+ {[%clk 0:00:17.8]} 54. Kh2
{[%clk 0:00:07.8]} 54... Qxg5 {[%clk 0:00:17.7]} 55. Qb6 {[%clk 0:00:07.3]}
55... Qe5+ {[%clk 0:00:15.3]} 56. Kg1 {[%clk 0:00:07]} 56... Kg7 {[%clk
0:00:15.1]} 57. Qb8 {[%clk 0:00:06.6]} 57... Qa1+ {[%clk 0:00:12.8]} 58. Kh2
{[%clk 0:00:06.4]} 58... Ne6 {[%clk 0:00:12.9]} 59. Qd6 {[%clk 0:00:04.4]} 59...
Qa5 {[%clk 0:00:11]} 60. Kg1 {[%clk 0:00:03.1]} 60... Kf6 {[%clk 0:00:10.8]} 61.
Kh2 {[%clk 0:00:03.4]} 61... Kf7 {[%clk 0:00:08.1]} 62. Kg1 {[%clk 0:00:03.7]}
62... Qxa7+ {[%clk 0:00:08.3]} 63. Kh2 {[%clk 0:00:03.1]} 63... Qc7 {[%clk
0:00:08.6]} 64. Qxc7+ {[%clk 0:00:03.6]} 64... Nxc7 {[%clk 0:00:09.5]} 65. Kg3
{[%clk 0:00:04.4]} 65... Kf6 {[%clk 0:00:09.7]} 66. Kf4 {[%clk 0:00:05.3]} 66...
Ne6+ {[%clk 0:00:09.6]} 67. Kg3 {[%clk 0:00:05.6]} 67... Kf5 {[%clk 0:00:09.7]}
68. Kh4 {[%clk 0:00:04.8]} 68... Kf4 {[%clk 0:00:09]} 69. Kh3 {[%clk 0:00:04.9]}
69... Nd4 {[%clk 0:00:08.1]} 70. Kh4 {[%clk 0:00:04.7]} 70... g5+ {[%clk
0:00:07.6]} 71. Kh5 {[%clk 0:00:05]} 71... Nxf3 {[%clk 0:00:07.1]} 72. gxf3
{[%clk 0:00:02.7]} 72... Bxf3+ {[%clk 0:00:08]} 0-1